Cogmind - Beta 12 @@@ ROGUE MODE // 2023.03.29 @ 13:49:10 Player: ArabianSandBoa Result: Destroyed by X-62 Marksman with Gauss Rifle Performance ------------- Evolutions (2) 1000 Regions Visited (8) 1600 Robots Destroyed (171) 855 Value Destroyed (4734) 4734 Prototype IDs (35) 700 Alien Tech Used (0) 0 Bonus (623) 623 TOTAL SCORE: 9512 Bonus ------- High Alert Combat Kills 137 Follower Combat Kills 111 Entered Garrisons 200 Aligned with FarCom 300 Friendly Fire -125 Cogmind --------- Core Integrity 0/550 Matter 235/300 Energy 6/100 System Corruption 1% Temperature Hot (262) Movement Treading (250) Ox1 Location -8/Garrison Parts ------- > --- POWER (1) -------- (None) > --- PROPULSION (3) --- Armored Treads Armored Treads Armored Medium Treads > --- UTILITY (5) ------ Advanced Heat Sink Huge Storage Unit Hardened Heavy Armor Plating Hacking Suite > --- WEAPON (2) ------- Precision Beam Rifle Precision Beam Rifle > --- INVENTORY (25) --- Armored Treads Huge Storage Unit Machine Analyzer Particle Charger Weapon Cycler Transmission Jammer Improved Utility Shielding Relay Coupler [Brawler] (19) Relay Coupler [Brawler] (18) Relay Coupler [Hunter] (10) Relay Coupler [Hunter] (11) Long-range Tractor Beam Trap Extractor (4/4 Dirty Bomb) Precision Beam Rifle Precision Beam Rifle Precision Beam Rifle Heavy Particle Cannon AWS/Gauss Heavy Missile Launcher Great Maul Peak State ------------ > --- POWER ------------ Light Nuclear Core > --- PROPULSION ------- Medium Treads Medium Treads Medium Treads > --- UTILITY ---------- Huge Storage Unit Advanced Targeting Computer System Shield System Shield System Shield > --- WEAPON ----------- AWS/Gauss > --- INVENTORY -------- Reinforced Deuterium Engine Medium Treads Advanced Heat Sink Machine Analyzer Weapon Cycler Weapon Cycler Transmission Jammer Improved Utility Shielding Heavy Armor Plating Hardened Medium Armor Plating Hardened Medium Armor Plating System Shield Trap Extractor Trap Extractor Trap Extractor Heavy Particle Cannon Heavy Assault Rifle Gauss Rifle Mini Grenade Launcher Heavy Missile Launcher Plasma Cutter Great Maul [Rating: 51] Favorites ----------- Power Light Nuclear Core Engine Improved Ion Engine Power Core Light Nuclear Core Propulsion Improved Treads Treads Improved Treads Leg Aluminum Leg Wheel Compact Wheel Utility System Shield Device Transmission Jammer Storage High-capacity Storage Unit Processor Improved Targeting Computer Hackware System Shield Protection Propulsion Shielding Weapon Improved Assault Rifle Energy Gun Precision Beam Rifle Energy Cannon Beam Cannon Ballistic Gun Improved Assault Rifle Ballistic Cannon Heavy Assault Cannon Special Weapon Plasma Cutter Special Melee Weapon Datajack Build | -11 -10 -10 -9 -9 -9 -8 -8 -8 ------- Run | Jun Mat Min Mat Min Exi Min Mat Gar Slots Evolved 4 | . . . 2 . . . 2 . Power . | . . . . . . . . . Propulsion 1 | . . . 1 . . . . . Utility 3 | . . . 1 . . . 2 . Weapon . | . . . . . . . . . Parts Attached 119 | 4 18 4 34 . 5 3 44 7 Power 11 | . 1 1 1 . . 2 6 . Engine 5 | . . 1 1 . . . 3 . Core 6 | . 1 . . . . 2 3 . Reactor . | . . . . . . . . . Propulsion 31 | 2 3 . 10 . . 1 12 3 Treads 28 | . 2 . 10 . . 1 12 3 Leg . | . . . . . . . . . Wheel 3 | 2 1 . . . . . . . Hover . | . . . . . . . . . Flight . | . . . . . . . . . Utility 41 | 2 5 3 11 . 4 . 14 2 Device 13 | 2 2 2 3 . . . 4 . Storage 5 | . 2 . . . 1 . 2 . Processor 3 | . . . 1 . . . 2 . Hackware 7 | . . . . . 3 . 3 1 Protection 13 | . 1 1 7 . . . 3 1 Artifact . | . . . . . . . . . Weapon 36 | . 9 . 12 . 1 . 12 2 Energy Gun 10 | . 1 . 4 . . . 4 1 Energy Cannon 4 | . 2 . . . . . 1 1 Ballistic Gun 18 | . 5 . 7 . 1 . 5 . Ballistic Cannon 2 | . . . . . . . 2 . Launcher . | . . . . . . . . . Special Weapon 1 | . . . 1 . . . . . Impact Weapon . | . . . . . . . . . Slashing Weapon . | . . . . . . . . . Piercing Weapon . | . . . . . . . . . Special Melee Weapon 1 | . 1 . . . . . . . Unidentified Prototypes 2 | . . . 1 . . . 1 . Parts Lost 14 | . 2 1 5 . . . 5 1 Power 5 | . . 1 1 . . . 2 1 Propulsion 1 | . . . . . . . 1 . Utility 5 | . . . 4 . . . 1 . Weapon 3 | . 2 . . . . . 1 . Highest Loss Streak 4 | . 1 1 4 . . . 3 1 To Critical Strikes 1 | . . . . . . . 1 . Average Slot Usage (%) 93 | . 99 99 89 88 84 88 95 96 Engine 6 | . 3 4 10 11 11 3 4 . Core 4 | . 10 8 . . . 7 2 8 Treads 27 | . 18 28 31 33 33 33 26 27 Wheel 1 | . 9 . . . . . . . Device 1 | . 4 . 1 . . . 1 9 Storage 10 | . 14 14 11 11 11 11 9 9 Processor 2 | . . . 1 . . . 7 4 Hackware 11 | . . . . . 16 22 24 18 Protection 6 | . 9 13 10 11 1 . 2 1 Energy Gun 3 | . 4 . . . . . 6 17 Ballistic Gun 15 | . 19 28 21 22 10 11 7 . Naked Turns . | . . . . . . . . . Heaviest Build 103 | 15 52 53 68 68 68 57 103 94 Greatest Support 84 | 32 40 40 69 69 69 69 84 76 Greatest Overweight (x) 2 | . 1 1 1 . . . 2 1 Average Overweight (x) . | . . 1 . . . . . 1 Largest Inventory Capacity 25 | 8 20 20 20 20 20 20 25 25 Average Capacity 21 | 8 18 20 20 20 20 20 24 25 Most Carried 25 | 7 20 20 20 20 20 20 25 25 Average Carried 20 | 6 17 19 19 19 19 19 24 23 Final Capacity 25 | 8 20 20 20 20 20 20 25 25 Final Carried 25 | 7 20 18 20 20 19 20 25 21 Class Distribution -------------------- 46% | Mutant 46% | Hacker-Mutant 4% | Scavenger-Mutant Dominant Class ---------------- Mutant | -10/Materials Mutant | -10/Mines Mutant | -9/Materials Mutant | -9/Mines Hacker-Mutant | -9/Exiles Hacker-Mutant | -8/Mines Hacker-Mutant | -8/Materials Hacker-Mutant | -8/Garrison Resources | -11 -10 -10 -9 -9 -9 -8 -8 -8 ----------- Run | Jun Mat Min Mat Min Exi Min Mat Gar Matter Collected 2945 | 210 317 205 806 178 . 114 1105 10 Remotely . | . . . . . . . . . Salvage Created 6996 | 175 1032 285 2082 315 . 407 2516 184 Parts 374 | 11 57 17 114 14 . 17 134 10 Haulers Intercepted 13 | . 2 . 6 . . . 5 . Recyclers Shooed 5 | . 2 . 1 1 . . 1 . Parts Field Recycled . | . . . . . . . . . Retrieved Matter . | . . . . . . . . . Parts Self-Destructed . | . . . . . . . . . Prevented . | . . . . . . . . . Kills | -11 -10 -10 -9 -9 -9 -8 -8 -8 ------- Run | Jun Mat Min Mat Min Exi Min Mat Gar Combat Hostiles Destroyed 117 | . 18 8 30 5 . 8 44 4 Guns 109 | . 13 8 29 5 . 8 42 4 Cannons 6 | . 5 . . . . . 1 . AOE 1 | . . . 1 . . . . . Classes Destroyed 16 | 2 6 1 2 1 . . 3 1 Worker 7 | . . . 4 . . . 3 . Builder 2 | . . 1 . . . . 1 . Tunneler 4 | 4 . . . . . . . . Hauler 13 | . 2 . 6 . . . 5 . Recycler 10 | 1 2 . 3 2 . . 2 . Mechanic 2 | . 1 . 1 . . . . . Operator 3 | . 1 . . . . . 2 . Watcher 12 | . 3 . 5 . . . 4 . Swarmer 23 | . 3 3 3 3 . 1 9 1 Grunt 67 | . 15 5 18 1 . 8 20 . Brawler 2 | . . . . 1 . . 1 . Duelist 1 | . . . . . . . 1 . Sentry 17 | . . . 9 . . . 8 . Specialist 3 | . . . . . . . . 3 Hunter 4 | . . . . . . . 4 . Heavy 1 | . . . . . . . 1 . Best Kill Streak 7 | 3 7 3 7 4 . 2 4 4 Combat Bots Only 6 | . 3 3 6 3 . 2 4 4 Max Kills in Single Turn 3 | 1 2 1 3 1 . 1 2 1 Gunslinging 1 | . . . 1 . . . 1 . Exploded 1 | . . . 1 . . . . . Melee . | . . . . . . . . . Uniques/NPCs Destroyed . | . . . . . . . . . Combat | -11 -10 -10 -9 -9 -9 -8 -8 -8 -------- Run | Jun Mat Min Mat Min Exi Min Mat Gar Damage Taken 5753 | 10 392 283 1429 59 . 196 2378 1006 Core 812 | . 23 29 140 . . 50 416 154 Absorbed by Shields . | . . . . . . . . . Redirected to Shielding 51 | . 9 22 20 . . . . . Regen/Repaired (Parts) 545 | . . . . . . . 545 . Core Remaining (%) 77 | 100 . 79 . . . 52 . . Volleys Fired 383 | 9 57 20 104 12 . . 166 15 Largest 2 | 2 2 2 2 2 . . 2 2 Hottest 136 | 90 100 46 90 46 . . 122 136 Shots Fired 809 | 18 109 40 208 25 . 45 334 30 Gun 771 | 18 82 40 208 25 . 45 324 29 Cannon 38 | . 27 . . . . . 10 1 Launcher . | . . . . . . . . . Special . | . . . . . . . . . Kinetic 553 | . 26 40 189 25 . 45 228 . Thermal 175 | 9 30 . . . . . 106 30 Explosive . | . . . . . . . . . Electromagnetic 81 | 9 53 . 19 . . . . . Robot Hit Streak 76 | 7 15 7 20 6 . 21 59 76 Robot Miss Streak 4 | 1 4 2 4 4 . 1 4 1 Penetration Max . | . . . . . . . . . Secondary Targets 18 | . . 1 7 2 . . 6 2 Max Gunslinging Chain 1 | . . 1 1 1 . . 1 1 Autonomous 61 | . . . . . . 45 16 . Shots Hit Robots 625 | 14 77 26 159 14 . 42 269 24 Core Hits 266 | 6 36 12 76 9 . 13 103 11 Critical Kills 3 | . . . 2 . . . 1 . Critical Parts Destroyed 2 | . . . 1 . . . 1 . Critical Strikes 20 | 1 . . 3 . . . 13 3 Burn 13 | 1 . . . . . . 9 3 Destroy 5 | . . . 3 . . . 2 . Blast 2 | . . . . . . . 2 . Melee Attacks . | . . . . . . . . . Impact . | . . . . . . . . . Slashing . | . . . . . . . . . Piercing . | . . . . . . . . . Sneak Attacks . | . . . . . . . . . Combat Hostiles . | . . . . . . . . . Follow-up Attacks . | . . . . . . . . . Damage Inflicted 11568 | 186 1211 412 2921 212 . 1181 5040 405 Guns 10362 | 165 848 412 2617 212 . 1181 4522 405 Cannons 857 | . 339 . . . . . 518 . Explosions 349 | 21 24 . 304 . . . . . Melee . | . . . . . . . . . Ramming . | . . . . . . . . . Kinetic 7750 | . 315 412 2234 212 . 1181 3396 . Thermal 2838 | 96 389 . 304 . . . 1644 405 Explosive . | . . . . . . . . . Electromagnetic 980 | 90 507 . 383 . . . . . Impact . | . . . . . . . . . Slashing . | . . . . . . . . . Piercing . | . . . . . . . . . Highest Corruption 2 | . 1 1 2 2 2 2 1 1 Average Corruption 1 | . 1 1 2 2 2 2 1 1 Corruption Purged . | . . . . . . . . . Corruption Blocked . | . . . . . . . . . Effects 66 | . 10 11 6 7 5 14 10 3 Message Errors 14 | . . 1 2 3 . 2 5 1 Matter Fused 17 | . 4 3 1 2 2 3 2 . Heat Flow Errors 7 | . 2 2 2 . 1 . . . Energy Discharges 8 | . 1 2 . 1 1 3 . . Parts Rejected 1 | . 1 . . . . . . . Parts Fused 2 | . . . . . . 2 . . Data Loss (minor) 9 | . 1 2 1 . . 3 1 1 Data Loss (major) 4 | . . 1 . . 1 1 1 . Misfires 1 | . . . . 1 . . . . Alerts 1 | . . . . . . . . 1 Weapon Failures 2 | . 1 . . . . . 1 . Overload Shots . | . . . . . . . . . Overflow Damage . | . . . . . . . . . Projectiles . | . . . . . . . . . Explosions . | . . . . . . . . . Melee . | . . . . . . . . . Knockbacks . | . . . . . . . . . Impact . | . . . . . . . . . Kinetic . | . . . . . . . . . Secondary . | . . . . . . . . . Self-Inflicted Damage 60 | 11 . . 49 . . . . . Shots 2 | 1 . . 1 . . . . . Rammed . | . . . . . . . . . Targets Rammed . | . . . . . . . . . Kicked . | . . . . . . . . . Crushed . | . . . . . . . . . Highest Temperature 294 | 162 266 245 154 5 275 . 294 279 Average Temperature 78 | 56 63 68 41 3 143 . 98 162 Received Heat Transfer 2073 | . 204 135 612 6 . 90 747 279 Effects 1 | . 1 . . . . . . . Interference 1 | . 1 . . . . . . . Siege Activations . | . . . . . . . . . Robots Corrupted . | . . . . . . . . . Combat Hostiles . | . . . . . . . . . Parts Fried 1 | . . . 1 . . . . . Impact Corruptions . | . . . . . . . . . Robots Melted 1 | . . . . . . . 1 . Combat Hostiles 1 | . . . . . . . 1 . Parts Melted 16 | . 1 . . . . . 14 1 Heat Transferred 6314 | 346 827 . 500 . . . 4070 571 Parts Sabotaged . | . . . . . . . . . Parts Stolen . | . . . . . . . . . Parts Stripped . | . . . . . . . . . Power Chain Reactions 6 | 1 1 . 4 . . . . . Missiles Intercepted . | . . . . . . . . . Alert | -11 -10 -10 -9 -9 -9 -8 -8 -8 ------- Run | Jun Mat Min Mat Min Exi Min Mat Gar Peak Influence 622 | 25 398 125 344 233 . 311 622 509 Initial 404 | . 16 19 4 108 . . . 404 Average 158 | 10 138 34 217 105 . 121 178 452 Maximum Alert Level 2 | . 1 . 1 1 . 1 2 2 Low Security (%) 65 | 100 65 100 40 84 . 81 63 . Level 1 29 | . 34 . 59 15 . 18 27 . Level 2 4 | . . . . . . . 8 100 Level 3 . | . . . . . . . . . Level 4 . | . . . . . . . . . Level 5 . | . . . . . . . . . High Security . | . . . . . . . . . Max Security . | . . . . . . . . . Squads Dispatched 26 | . 7 1 6 . . . 12 . Investigation 19 | . 6 1 6 . . . 6 . Extermination . | . . . . . . . . . Reinforcement 6 | . 1 . . . . . 5 . Assault . | . . . . . . . . . Garrison 1 | . . . . . . . 1 . Intercept . | . . . . . . . . . Searches Triggered . | . . . . . . . . . Construction Impeded . | . . . . . . . . . Haulers Reinforced . | . . . . . . . . . Active Scanning Responses . | . . . . . . . . . Cargo Convoy Interrupts . | . . . . . . . . . Stealth | -11 -10 -10 -9 -9 -9 -8 -8 -8 --------- Run | Jun Mat Min Mat Min Exi Min Mat Gar Distress Signals 8 | . . . 2 . . . 5 1 Communications Jammed 8 | . . . . . . . 8 . Distress Signals 8 | . . . . . . . 8 . Times Spotted 152 | . 23 8 38 5 . 13 57 8 Peak Tracking Total 7 | . 4 3 6 3 . 4 5 7 Tactical Retreats 5 | . . . 1 . . 2 2 . Traps | -11 -10 -10 -9 -9 -9 -8 -8 -8 ------- Run | Jun Mat Min Mat Min Exi Min Mat Gar Traps Triggered 7 | . 3 . 1 . . . 3 . Indirectly . | . . . . . . . . . Trap Hack Attempts . | . . . . . . . . . Triggered . | . . . . . . . . . Disarmed . | . . . . . . . . . Reprogrammed . | . . . . . . . . . Reused . | . . . . . . . . . Traps Extracted 6 | . . 6 . . . . . . Installed 2 | . . . 2 . . . . . Triggered . | . . . . . . . . . Most Traps Carried 6 | . . 6 6 4 4 4 4 4 Exploded 1 | . . . . . . . 1 . Machines | -11 -10 -10 -9 -9 -9 -8 -8 -8 ---------- Run | Jun Mat Min Mat Min Exi Min Mat Gar Machines Disabled 2 | . . . 1 . . . 1 . Max in Single Turn 1 | . . . 1 . . . 1 . Machines Repaired . | . . . . . . . . . Machines Sabotaged . | . . . . . . . . . Overloaded Fab Kills . | . . . . . . . . . Hacking | -11 -10 -10 -9 -9 -9 -8 -8 -8 --------- Run | Jun Mat Min Mat Min Exi Min Mat Gar Machines Accessed 34 | . 9 1 9 . 1 . 13 1 Terminals 22 | . 7 1 6 . . . 7 1 Fabricators . | . . . . . . . . . Repair Stations 2 | . . . 1 . . . 1 . Recycling Units 6 | . 2 . 2 . . . 2 . Scanalyzers 2 | . . . . . . . 2 . Garrison Access 1 | . . . . . . . 1 . Total Hacks 182 | . 42 4 33 . 1 . 99 3 Successful 105 | . 23 . 11 . 1 . 68 2 Failed 76 | . 19 4 21 . . . 31 1 Catastrophic 15 | . . 2 3 . . . 10 . Database Lockouts 1 | . . . 1 . . . . . Manual 63 | . 18 4 12 . 1 . 27 1 Terminals 86 | . 32 4 22 . . . 25 3 Fabricators . | . . . . . . . . . Repair Stations 18 | . . . 2 . . . 16 . Recycling Units 35 | . 10 . 9 . . . 16 . Scanalyzers 34 | . . . . . . . 34 . Garrison Access 8 | . . . . . . . 8 . Terminal Hacks 24 | . 11 . 6 . 1 . 5 1 Robot Analysis 9 | . 6 . 3 . . . . . Prototype ID Bank 5 | . 2 . 1 . . . 2 . Branch Access Points 1 | . . . . . . . 1 . Emergency Access Points 1 | . . . . . . . . 1 Terminal Index 1 | . . . 1 . . . . . Unreport Threat 3 | . 1 . 1 . . . 1 . Hauler Manifests 1 | . . . . . . . 1 . Zone Layout 2 | . 2 . . . . . . . EX-Prototype ID Bank 1 | . . . . . 1 . . . Fabricator Hacks . | . . . . . . . . . Repair Station Hacks 16 | . . . . . . . 16 . Scan Component 8 | . . . . . . . 8 . Repair 8 | . . . . . . . 8 . Recycling Unit Hacks 8 | . 3 . 1 . . . 4 . Report Inventory 6 | . 2 . 1 . . . 3 . Retrieve Components 2 | . 1 . . . . . 1 . Scanalyzer 31 | . . . . . . . 31 . Insert Component 14 | . . . . . . . 14 . Analyze 17 | . . . . . . . 17 . Garrison Access Hacks 1 | . . . . . . . 1 . Unlock Access 1 | . . . . . . . 1 . Unauthorized Hacks 25 | . 9 . 4 . . . 11 1 Terminals 10 | . 5 . 2 . . . 2 1 Botnet 9 | . 5 . 2 . . . 2 . Search 1 | . . . . . . . . 1 Fabricators . | . . . . . . . . . Repair Stations . | . . . . . . . . . Recycling Units 10 | . 4 . 2 . . . 4 . Reject 4 | . 2 . 1 . . . 1 . Mask 5 | . 2 . 1 . . . 2 . Tunnel 1 | . . . . . . . 1 . Scanalyzers . | . . . . . . . . . Garrison Access 5 | . . . . . . . 5 . Restock 1 | . . . . . . . 1 . Reprogram 1 | . . . . . . . 1 . Intercept 1 | . . . . . . . 1 . Watchers 1 | . . . . . . . 1 . Eject 1 | . . . . . . . 1 . Data Cores Recovered . | . . . . . . . . . Used . | . . . . . . . . . Hacking Detections 30 | . 9 1 9 . . . 10 1 Full Trace Events 15 | . 5 1 6 . . . 3 . Feedback Events . | . . . . . . . . . Feedback Blocked . | . . . . . . . . . Robot Schematics Acquired . | . . . . . . . . . Robots Built . | . . . . . . . . . Authchips . | . . . . . . . . . Time . | . . . . . . . . . Total Robot Build Rating . | . . . . . . . . . Part Schematics Acquired 14 | . . . . . . . 14 . Parts Built . | . . . . . . . . . Authchips . | . . . . . . . . . Time . | . . . . . . . . . Total Part Build Rating . | . . . . . . . . . Parts Repaired 8 | . . . . . . . 8 . Time 344 | . . . . . . . 344 . Parts Recycled . | . . . . . . . . . Recycled Matter . | . . . . . . . . . Retrieved Matter . | . . . . . . . . . Retrieved Components 6 | . 3 . . . . . 3 . Parts Scanalyzed 14 | . . . . . . . 14 . Part Schematics Acquired 14 | . . . . . . . 14 . Parts Damaged 1 | . . . . . . . 1 . Bothacking | -11 -10 -10 -9 -9 -9 -8 -8 -8 ------------ Run | Jun Mat Min Mat Min Exi Min Mat Gar Used RIF Installer . | . . . . . . . . . Robots Hacked . | . . . . . . . . . Non-combat . | . . . . . . . . . Combat . | . . . . . . . . . Robot Hacks Applied . | . . . . . . . . . Relay Couplers Released 8 | . . . . . . . 4 4 Ejected 4 | . . . . . . . 4 . Programmers 4 | . . . . . . . . 4 Fabnet Peak Effective % . | . . . . . . . . . Robots Rewired . | . . . . . . . . . Allies Hacked 2 | . . . . . . . . 2 Hacks Repelled . | . . . . . . . . . Allies | -11 -10 -10 -9 -9 -9 -8 -8 -8 -------- Run | Jun Mat Min Mat Min Exi Min Mat Gar Total Allies 6 | . . . . 3 . . 1 2 Largest Group 3 | . . . . 3 3 3 1 3 Highest-Rated Group 83 | . . . . 40 40 40 38 83 Highest-Rated Ally 38 | . . . . 16 16 16 38 38 Total Orders . | . . . . . . . . . Ally Attacks 46 | . . . . . . 29 3 14 Total Damage 546 | . . . . . . 266 29 251 Kills 5 | . . . . . . 4 . 1 Allies Corrupted . | . . . . . . . . . Allies Melted . | . . . . . . . . . Intel | -11 -10 -10 -9 -9 -9 -8 -8 -8 ------- Run | Jun Mat Min Mat Min Exi Min Mat Gar Robot Analysis Total 9 | . 6 . 3 . . . . . Derelict Logs Recovered 3 | . . 2 . 1 . . . . Drone Launches . | . . . . . . . . . Drone Recoveries . | . . . . . . . . . Exploration | -11 -10 -10 -9 -9 -9 -8 -8 -8 ------------- Run | Jun Mat Min Mat Min Exi Min Mat Gar Turns Passed 11852 | 71 1589 1207 2279 804 591 911 4214 186 Spaces Moved 4635 | 15 667 457 919 455 355 538 1181 48 Core . | . . . . . . . . . Treads 4347 | . 394 457 919 455 355 538 1181 48 Legs 14 | 14 . . . . . . . . Wheels 274 | 1 273 . . . . . . . Hover . | . . . . . . . . . Flight . | . . . . . . . . . Fastest Speed 100 | 100 100 240 160 160 160 160 160 243 Average Speed 198 | 118 184 240 189 160 160 160 241 243 Slowest Speed 320 | 120 240 240 240 160 160 160 320 250 Overloaded Moves . | . . . . . . . . . Propulsion Burnouts . | . . . . . . . . . Robots Hopped . | . . . . . . . . . Cave-ins Triggered . | . . . . . . . . . Exploration Rate (%) 70 | 3 96 98 79 99 69 93 83 16 Regions Visited 8 Branch Regions 4 Pre-discovered Areas 3 | . . 2 . . . . 1 . Known Exits Taken 1 | . . . . . . . 1 . Unknown Exits Taken 7 | 1 1 1 1 1 1 1 . . Scrap Searched 4 | . . 1 . 1 . 2 . . Spaces Dug 1 | . . . . . . . 1 . Terrain Destroyed 53 | . 8 . 11 . . 20 14 . Melee . | . . . . . . . . . Projectile 34 | . . . . . . 20 14 . AOE 19 | . 8 . 11 . . . . . Terrain Rammed . | . . . . . . . . . Walls Destroyed . | . . . . . . . . . Machines Disabled . | . . . . . . . . . Actions | -11 -10 -10 -9 -9 -9 -8 -8 -8 --------- Run | Jun Mat Min Mat Min Exi Min Mat Gar Total 6571 | 49 920 529 1263 508 384 591 2238 89 Wait 1139 | 18 135 40 115 40 3 38 738 12 Move 4627 | 14 666 456 918 454 354 537 1180 48 Hop . | . . . . . . . . . Pick Up 146 | 3 27 4 40 1 8 6 56 1 Fast Attach 29 | . 1 . 9 . 2 1 16 . Attach 33 | 1 5 1 8 . 3 . 13 2 Detach 13 | . 2 . 3 . 2 . 3 3 Swap 57 | 3 12 3 17 . . 2 15 5 Drop 141 | 1 15 5 47 1 12 7 51 2 Fire 383 | 9 57 20 104 12 . . 166 15 Melee . | . . . . . . . . . Ram . | . . . . . . . . . Kick . | . . . . . . . . . Crush . | . . . . . . . . . Escape Stasis . | . . . . . . . . . Rewire 1 | . . . . . . . . 1 Trap 2 | . . . 2 . . . . . Miscellaneous . | . . . . . . . . . Route ------- -11/Junkyard -10/Materials (discovered 4 exits: *Mat x3 / *Min) -10/Mines (discovered 2 exits: *Mat x2) -9/Materials (discovered 4 exits: *Mat x3 / [*Min]) -9/Mines (discovered 4 exits: *Mat x2 / *Exi / [*Zio]) -9/Exiles -8/Mines (discovered 2 exits: *Mat x2) -8/Materials (discovered 4 exits: *Fac x3 / Gar) -8/Garrison History --------- Turn | Location | Event 16 | -11/Junkyard | Discovered new exit (range 2) 72 | -11/Junkyard | Entered Materials 224 | -10/Materials | Discovered new exit (range 6) 251 | -10/Materials | Discovered new exit (range 16) 314 | -10/Materials | Build established: Mutant 748 | -10/Materials | Discovered new exit (range 8) 1374 | -10/Materials | Discovered new exit (range 12) 1661 | -10/Materials | Entered Mines 1662 | -10/Mines | Learned location of Storage (-7) 2189 | -10/Mines | Learned location of Zion (-7) 2211 | -10/Mines | Learned Materials trap positions 2304 | -10/Mines | Discovered new exit (range 7) 2347 | -10/Mines | Received a Rocket Launcher from a helpful Derelict 2402 | -10/Mines | Discovered new exit (range 11) 2868 | -10/Mines | Entered Materials 2868 | -9/Materials | Evolved 2 slots: Propulsion x1, Utility x1 2869 | -9/Materials | Loaded intel: 18 trap records 3094 | -9/Materials | Lost 4 parts (1p3u) 3243 | -9/Materials | Central database locked down 3706 | -9/Materials | Build established: Scavenger-Mutant 3893 | -9/Materials | Discovered new exit (range 16) 4098 | -9/Materials | Build established: Mutant 4287 | -9/Materials | Discovered new exit (range 3) 4593 | -9/Materials | Discovered new exit (range 16) 4843 | -9/Materials | Discovered new exit (range 8) 5147 | -9/Materials | Entered Mines 5148 | -9/Mines | A Derelict revealed a hidden shortcut to a safe place 5249 | -9/Mines | Deemed a non-threat by the Exiles lab entrance 5249 | -9/Mines | Discovered new exit (range 5) 5373 | -9/Mines | Learned location of 1 exit from Materials 5386 | -9/Mines | Discovered new exit (range 4) 5628 | -9/Mines | A weapon hastily lodged in a ceiling crevice suddenly fell to the ground 5745 | -9/Mines | Discovered new exit (range 5) 5753 | -9/Mines | Assisted by bots powering up and referring to "LRC-V3" 5951 | -9/Mines | Entered Exiles 5951 | -9/Exiles | Accompanied by 3 allies 5990 | -9/Exiles | Met 8R-AWN 6019 | -9/Exiles | Met EX-HEX 6069 | -9/Exiles | Met EX-BIN 6086 | -9/Exiles | Aligned with FarCom system 6088 | -9/Exiles | Given EX-Vault access code 6125 | -9/Exiles | Opened EX-Vault 6139 | -9/Exiles | Found AWS/Gauss 6171 | -9/Exiles | Warned to stay clear of 0b10 Research branches 6451 | -9/Exiles | Met EX-DEC 6521 | -9/Exiles | Discovered new exit (range 12) 6542 | -9/Exiles | Left Exiles lab with AWS/Gauss 6542 | -9/Exiles | Entered Mines 6542 | -8/Mines | Accompanied by 3 allies 6566 | -8/Mines | Discovered new exit (range 4) 6625 | -8/Mines | Build established: Trapper-Mutant 6930 | -8/Mines | Build established: Hacker-Mutant 7431 | -8/Mines | Discovered new exit (range 11) 7453 | -8/Mines | Entered Materials 7453 | -8/Materials | Accompanied by 1 ally 7453 | -8/Materials | Evolved 2 slots: Utility x2 7454 | -8/Materials | Identified exit to Factory 9250 | -8/Materials | Discovered exit to Factory (range 16) 9255 | -8/Materials | Core integrity fell below 50% 9287 | -8/Materials | Lost 3 parts (1p1n1w) 10424 | -8/Materials | Repaired Med. Treads 10464 | -8/Materials | Repaired Particle Charger 10503 | -8/Materials | Repaired Arm. Treads 10548 | -8/Materials | Repaired Med. Treads 10588 | -8/Materials | Repaired Arm. Treads 10764 | -8/Materials | Repaired Hvy. Missile Launcher 10803 | -8/Materials | Repaired Hvy. Particle Cannon 11029 | -8/Materials | Repaired Prc. Beam Rifle 11436 | -8/Materials | Discovered exit to Factory (range 15) 11580 | -8/Materials | Garrison activated, responded to threat 11649 | -8/Materials | Identified exit to Garrison 11667 | -8/Materials | Entered Garrison 11667 | -8/Garrison | Accompanied by 1 ally 11709 | -8/Garrison | P-60 Hacker assimilated hostile G-50 Soldier 11724 | -8/Garrison | P-60 Hacker assimilated hostile G-47 Trooper 11806 | -8/Garrison | Triggered checkpoint 11814 | -8/Garrison | Core integrity fell below 20% 11853 | -8/Garrison | Destroyed by X-62 Marksman with Gauss Rifle Last Messages --------------- 11823_ Penetrated by Slug. 11826_ Slug penetrates Machine. 11829_ Penetrated by Slug. 11829_ X-62 Marksman destroyed. 11832_ Slug penetrates X-62 Marksman. 11834_ S-10 Pest destroyed. 11835_ X-62 Marksman suffers critical hit (Burn). 11836_ Slug penetrates Machine. 11836_ Critical hit (Burn: +37). 11838_ Lgt. Nuclear Core destroyed. 11839_ Penetrated by Slug. 11839_ X-62 Marksman destroyed. 11839_ Switching to secondary target: S-10 Pest. 11844_ Slug penetrates Machine. 11845_ XU% 11850_ Critical hit (Burn: +37). 11852_ X-62 Marksman suffers critical hit (Burn). Map ----- +----------------------------------------------------+ | ?????????????????????????????????????????????????? | | ?????????????????????????????????????????????????? | | ?????????????????????????????????????????????????? | | ?????????????????????????????????????????????????? | | ?????????????????????????????????????????????????? | | ?????????????????????????????????????????????????? | | ?????????????????????????????????????????????????? | | ?????????????????????????????????????????????????? | | ?????????????????????????????????????????????????? | | ?????????????????????????????????????????????????? | | ?????????????????+??+????????????????????????????? | | ?????????????+???+??+????????????????????????????? | | ?????????????????????????????????????????????????? | | ?????????????????????????????????????????????????? | | ?????+???????????????????????????????????????????? | | ?????????????????????????????????????????????????? | | ?????????????????????????????????????????????????? | | ?????????????????????????????????????????????????? | | ?????????????????????????????????????????????????? | | ?????????????????????????????????????????????????? | | ????????s????????????????????????????????????????? | | ????????s????????????????????????????????????????? | | ?????????????????????????????????????????????????? | | ???????????????????############??????????????????? | | ???#???????????????#""" = """#??????????????????? | | ???# ############# !!=!@] "#??????????????????? | | ? + ===%!!! "#??????????????????? | | ? [%% %///x%!!"#??????????????????? | | ????????##+### [## !+[!*!=]"#??????????????????? | | ?????????????# ## +!%+=[="#??????????????????? | | ?????????????# ## ++++[ ]"#??????????????????? | | ?????????????+ ## ?? ""#??????????????????? | | ?????????????# T###"*!![?!"""#??????????????????? | | ??????+??????# ##?#""""""""""#??????????????????? | | ?????????????# #??###########???????????????????? | | ???# ????????# #????????????????????????????????? | | ???# ####+### ##############???????????????????? | | ???# #???????????????????? | | ???# #???????????????????? | | ???#######=########+####### #???????????????????? | | ?????????#%#??????????????# #???????????????????? | | ?????????#[#??????????????# #???????????????????? | | ?????????# #???????+??????# #???????????????????? | | ?????????# #??????????????# #???????????????????? | | ?????????# #??????????????# ###?????????????????? | | ?????????# #??????????????# #?????????????????? | | ?????????# #??????????????# #?????????????????? | | ?????????# #?+????????????# #?????????????????? | | ?????????# ??????????????######?????????????????? | | ?????????? #?????????????????????????????????????? | +----------------------------------------------------+ Best States ------------- Heat Dissipation 50 Energy Generation 16 Energy Capacity 290 Matter Stores 300 Matter Capacity 300 Sight Range 16 Terrain Scan Range 16 Terrain Scan Density 10 Jamming Range 12 Additional Mass Support 6 Armor Coverage 600 Propulsion Shielding 33 Utility Shielding 66 Weapon Cycling 15 Evasion (%) 50 Targeting Accuracy 14 Recoil Reduction 3 Particle Charging 15 Offensive Hacking 10 Defensive Hacking 30 Trap Extractor Capacity 4 Item Schematics ----------------- Hvy. Armor Plating | -8/Materials | Scanalyzed Imp. Treads | -8/Materials | Scanalyzed Imp. Utility Shielding | -8/Materials | Scanalyzed Trap Extractor | -8/Materials | Scanalyzed Hvy. Battle Rifle | -8/Materials | Scanalyzed Hvy. Particle Cannon | -8/Materials | Scanalyzed Hacking Suite | -8/Materials | Scanalyzed Lrn. Tractor Beam | -8/Materials | Scanalyzed Arm. Treads | -8/Materials | Scanalyzed System Shield | -8/Materials | Scanalyzed Adv. Heat Sink | -8/Materials | Scanalyzed Prc. Beam Rifle | -8/Materials | Scanalyzed Hrd. Heavy Armor Plating | -8/Materials | Scanalyzed Transmission Jammer | -8/Materials | Scanalyzed Robot Schematics ------------------ None Fabricated ------------ Nothing Alien Tech Used ----------------- None Achievements -------------- None Challenges ------------ None Game ------ Seed PhaseRelayMeganuke Manual? 0 Play Time 01:06:14 Cumulative 514.2 hours Start 2023.03.29 @ 12:42:52 End 2023.03.29 @ 13:49:10 Sessions 1 Manual Loads 0 Difficulty Rogue Special Mode None Game No. 544 Rogue 544 Adventurer 0 Explorer 0 Win Type - Total 1 Types 1/0/0/0/0/0/0/0/0 Lore% 64 Gallery% 83 Achievement% 65 Wizard Run 0 Options --------- ASCII 0 Keyboard 0 Movement Mouse Keybinds 0 Fullscreen 2 Font 24/Smallcaps Map View 76x50 Tactical HUD 1 Map Filters NONE Filters NONE Steam 1 RUN: 3f53b911-4f62-44c0-a331-249a063b3b0c